[Event "RUS-ch Men Blitz 2019"]
[Site "Sochi"]
[Date "2019.10.17"]
[Round "6.17"]
[White "Kovalchuk, Alexey"]
[Black "Yuffa, Daniil"]
[Result "0-1"]
[ECO "B11"]
[WhiteElo "2388"]
[BlackElo "2577"]
[Annotator "ChessBase"]
[PlyCount "43"]
[EventDate "2019.10.17"]
[EventType "swiss"]
[EventCountry "RUS"]
[SourceTitle "playchess.com"]
[Source "ChessBase"]
[SourceQuality "1"]
[TimeControl "180+2"]

1. e4 c6 2. Nc3 {[%emt 0:00:05]} d5 {[%emt 0:00:00]} 3. Nf3 {[%emt 0:00:03]} Bg4 {[%emt 0:00:02]} 4. h3 {[%emt 0:00:02]} Bxf3 {[%emt 0:00:02]} 5. Qxf3 {[%emt 0:00:03]} e6 {[%emt 0:00:02]} 6. Be2 {[%emt 0:00:02]} Bc5 {[%emt 0:00:01]} 7. O-O {[%emt 0:00:12]} Ne7 {[%emt 0:00:01]} 8. Na4 {[%emt 0:00:14]} Bd6 {[%emt 0:00:08]} 9. d4 {[%emt 0:00:03]} dxe4 {[%emt 0:00:04]} 10. Qxe4 {[%emt 0:00:02]} Nd7 {[%emt 0:00:04]} 11. c4 {[%emt 0:00:07]} Nf6 {[%emt 0:00:03]} 12. Qd3 {[%emt 0:00:06]} Nf5 {[%emt 0:00:07]} 13. Rd1 {[%emt 0:00:05]} O-O {[%emt 0:00:05]} 14. Nc3 {[%emt 0:00:02]} a6 {[%emt 0:00:14]} 15. Ne4 {[%emt 0:00:02]} Nxe4 {[%emt 0:00:17]} 16. Qxe4 {[%emt 0:00:02]} Qf6 {[%emt 0:00:11]} 17. Rb1 {[%emt 0:01:20]} Rad8 {[%emt 0:00:01]} 18. Be3 {[%emt 0:00:21]} Nxe3 {[%emt 0:00:21]} 19. fxe3 {[%emt 0:00:15]} Qg5 {[%emt 0:00:02]} 20. Qf3 {[%emt 0:00:10]} e5 {[%emt 0:00:06]} 21. Bd3 {[%emt 0:00:22]} f5 {[%emt 0:00:10]} 22. Bc2 {[%emt 0:00:01]} 0-1

[Event "RUS-ch Men Blitz 2019"]
[Site "Sochi"]
[Date "2019.10.17"]
[Round "6.18"]
[White "Smagin, Sergey"]
[Black "Zakhartsov, Vladimir"]
[Result "0-1"]
[ECO "B22"]
[WhiteElo "2551"]
[BlackElo "2514"]
[Annotator "ChessBase"]
[PlyCount "92"]
[EventDate "2019.10.17"]
[EventType "swiss"]
[EventCountry "RUS"]
[SourceTitle "playchess.com"]
[Source "ChessBase"]
[SourceQuality "1"]
[TimeControl "180+2"]

1. e4 {[%emt 0:00:00]} c5 {[%emt 0:00:00]} 2. c3 {[%emt 0:00:02]} Nf6 {[%emt 0:00:02]} 3. e5 {[%emt 0:00:01]} Nd5 {[%emt 0:00:01]} 4. Nf3 {[%emt 0:00:01]} e6 {[%emt 0:00:01]} 5. Na3 {[%emt 0:00:03]} d6 {[%emt 0:00:03]} 6. exd6 {[%emt 0:00:12]} Bxd6 {[%emt 0:00:02]} 7. d4 {[%emt 0:00:01]} cxd4 {[%emt 0:00:04]} 8. Qxd4 {[%emt 0:00:01]} O-O {[%emt 0:00:04]} 9. Nc4 {[%emt 0:00:01]} Nc6 {[%emt 0:00:06]} 10. Qe4 {[%emt 0:00:02]} Nf6 {[%emt 0:00:08]} 11. Qc2 {[%emt 0:00:04]} Bc7 {[%emt 0:00:29]} 12. a4 {[%emt 0:00:06]} e5 {[%emt 0:00:05]} 13. Bg5 {[%emt 0:00:06]} e4 {[%emt 0:00:20]} 14. Rd1 {[%emt 0:00:03]} Qe7 {[%emt 0:00:02]} 15. Nfd2 {[%emt 0:00:32]} Bf5 {[%emt 0:00:15]} 16. Ne3 {[%emt 0:00:02]} Qe5 {[%emt 0:00:32]} 17. Ndc4 {[%emt 0:00:03]} Qe6 {[%emt 0:00:01]} 18. Bxf6 {[%emt 0:00:33]} Qxf6 {[%emt 0:00:01]} 19. Nd5 {[%emt 0:00:04]} Qd8 {[%emt 0:00:26]} 20. Nce3 {[%emt 0:00:03]} Bg6 {[%emt 0:00:05]} 21. Nb6 {[%emt 0:00:06]} Bxb6 {[%emt 0:00:01]} 22. Rxd8 {[%emt 0:00:01]} Raxd8 {[%emt 0:00:02]} 23. Be2 {[%emt 0:00:23]} f5 {[%emt 0:00:05]} 24. Nc4 {[%emt 0:00:09]} Bc5 {[%emt 0:00:40]} 25. Qb3 {[%emt 0:00:03]} Rf7 {[%emt 0:00:01]} 26. Qb5 {[%emt 0:00:03]} Bf8 {[%emt 0:00:06]} 27. O-O {[%emt 0:00:06]} a6 {[%emt 0:00:02]} 28. Qb6 {[%emt 0:00:04]} Rfd7 {[%emt 0:00:02]} 29. h4 {[%emt 0:00:04]} Bf7 {[%emt 0:00:01]} 30. Qe3 {[%emt 0:00:13]} g6 {[%emt 0:00:02]} 31. b4 {[%emt 0:00:07]} Ne7 {[%emt 0:00:01]} 32. Nb6 {[%emt 0:00:04]} Nd5 {[%emt 0:00:04]} 33. Nxd5 {[%emt 0:00:05]} Bxd5 {[%emt 0:00:02]} 34. Rd1 {[%emt 0:00:07]} Bf7 {[%emt 0:00:02]} 35. Rxd7 {[%emt 0:00:01]} Rxd7 {[%emt 0:00:00]} 36. g3 {[%emt 0:00:01]} Bg7 {[%emt 0:00:06]} 37. Qc5 {[%emt 0:00:02]} Bf8 {[%emt 0:00:03]} 38. Qc8 {[%emt 0:00:02]} Re7 {[%emt 0:00:03]} 39. Bc4 {[%emt 0:00:01]} Kg7 {[%emt 0:00:02]} 40. Bxf7 {[%emt 0:00:01]} Rxf7 {[%emt 0:00:02]} 41. Qe6 {[%emt 0:00:03]} Re7 {[%emt 0:00:03]} 42. Qd5 {[%emt 0:00:01]} h6 {[%emt 0:00:03]} 43. c4 {[%emt 0:00:02]} Rf7 {[%emt 0:00:02]} 44. c5 {[%emt 0:00:01]} g5 {[%emt 0:00:02]} 45. h5 {[%emt 0:00:02]} Rf6 {[%emt 0:00:02]} 46. b5 {[%emt 0:00:02]} axb5 {[%emt 0:00:02]} 0-1

[Event "RUS-ch Men Blitz 2019"]
[Site "Sochi"]
[Date "2019.10.17"]
[Round "6.22"]
[White "Dianov, Alexey"]
[Black "Oganian, Miran"]
[Result "1-0"]
[ECO "B22"]
[WhiteElo "2158"]
[BlackElo "2436"]
[Annotator "NA"]
[PlyCount "81"]
[EventDate "2019.10.17"]
[EventType "swiss"]
[EventCountry "RUS"]
[SourceTitle "playchess.com"]
[Source "ChessBase"]
[SourceQuality "1"]
[TimeControl "180+2"]

1. e4 {[%emt 0:00:00]} c5 {[%emt 0:00:00]} 2. c3 {[%emt 0:00:00]} Nf6 {[%emt 0:00:00]} 3. e5 {[%emt 0:00:00]} Nd5 4. d4 cxd4 {[%emt 0:00:01]} 5. Qxd4 {[%emt 0:00:01]} e6 {[%emt 0:00:01]} 6. Nf3 {[%emt 0:00:01]} Nc6 7. Qe4 Nde7 {[%emt 0:00:01]} 8. Bb5 {[%emt 0:00:06]} Qc7 {[%emt 0:00:14]} 9. O-O {[%emt 0:00:08]} Ng6 {[%emt 0:00:14]} 10. Bxc6 {[%emt 0:00:13]} bxc6 {[%emt 0:00:14]} 11. Nbd2 {[%emt 0:00:04]} d5 {[%emt 0:00:05]} 12. exd6 {[%emt 0:00:02]} Bxd6 {[%emt 0:00:00]} 13. Nc4 {[%emt 0:00:04]} Be7 {[%emt 0:00:04]} 14. Rd1 {[%emt 0:00:33]} O-O {[%emt 0:00:06]} 15. Nce5 {[%emt 0:00:15]} Nxe5 {[%emt 0:01:02]} 16. Nxe5 {[%emt 0:00:01]} Bb7 {[%emt 0:00:01]} 17. Rd7 {[%emt 0:00:02]} Rad8 {[%emt 0:00:01]} 18. Rxd8 {[%emt 0:00:15]} Rxd8 {[%emt 0:00:06]} 19. Bf4 {[%emt 0:00:01]} c5 {[%emt 0:00:21]} 20. Qe3 {[%emt 0:00:07]} Qb6 {[%emt 0:00:07]} 21. Nc4 {[%emt 0:00:01]} Qc6 {[%emt 0:00:03]} 22. f3 {[%emt 0:00:03]} Ba6 {[%emt 0:00:10]} 23. Ne5 {[%emt 0:00:12]} Qb5 {[%emt 0:00:06]} 24. b3 {[%emt 0:00:12]} f6 {[%emt 0:00:11]} 25. c4 {[%emt 0:00:05]} Qb6 {[%emt 0:00:16]} 26. Nd3 {[%emt 0:00:11]} e5 {[%emt 0:00:01]} 27. Bg3 {[%emt 0:00:03]} Qd6 {[%emt 0:00:03]} 28. Nf2 {[%emt 0:00:13]} Bc8 {[%emt 0:00:08]} 29. Rd1 {[%emt 0:00:02]} Qc7 {[%emt 0:00:07]} 30. Rxd8+ {[%emt 0:00:09]} Qxd8 {[%emt 0:00:01]} 31. Qd3 {[%emt 0:00:04]} Qb6 {[%emt 0:00:06]} 32. Ne4 {[%emt 0:00:04]} Be6 {[%emt 0:00:07]} 33. Nc3 {[%emt 0:00:01]} Qc6 {[%emt 0:00:03]} 34. Bf2 {[%emt 0:00:05]} Bf8 {[%emt 0:00:03]} 35. h3 {[%emt 0:00:08]} Bf7 {[%emt 0:00:01]} 36. Qd2 {[%emt 0:00:05]} h5 {[%emt 0:00:02]} 37. Qd8 {[%emt 0:00:02]} Qa6 {[%emt 0:00:04]} 38. Bxc5 {[%emt 0:00:03]} Kh7 {[%emt 0:00:03]} 39. Qxf8 {[%emt 0:00:03]} Bg6 {[%emt 0:00:01]} 40. Qd6 {[%emt 0:00:08]} Qa5 {[%emt 0:00:01]} 41. Bb4 {[%emt 0:00:01]} 1-0

[Event "RUS-ch Men Blitz 2019"]
[Site "Sochi"]
[Date "2019.10.17"]
[Round "6.24"]
[White "Goltsev, Dmitry"]
[Black "Airapetian, Gor"]
[Result "1-0"]
[ECO "C00"]
[WhiteElo "2309"]
[BlackElo "2447"]
[Annotator "NA"]
[PlyCount "27"]
[EventDate "2019.10.17"]
[EventType "swiss"]
[EventCountry "RUS"]
[SourceTitle "playchess.com"]
[Source "ChessBase"]
[SourceQuality "1"]
[TimeControl "180+2"]

1. e4 {[%emt 0:00:00]} e6 {[%emt 0:00:00]} 2. Nf3 {[%emt 0:00:00]} d5 {[%emt 0:00:00]} 3. exd5 {[%emt 0:00:01]} exd5 {[%emt 0:00:01]} 4. d4 {[%emt 0:00:01]} Bd6 {[%emt 0:00:01]} 5. Bd3 {[%emt 0:00:02]} Ne7 {[%emt 0:00:10]} 6. O-O {[%emt 0:00:06]} Nbc6 {[%emt 0:00:12]} 7. c3 {[%emt 0:00:02]} Bg4 {[%emt 0:00:03]} 8. h3 {[%emt 0:00:03]} Bh5 {[%emt 0:00:01]} 9. Re1 {[%emt 0:00:15]} Qd7 {[%emt 0:00:04]} 10. b4 {[%emt 0:00:13]} O-O {[%emt 0:00:14]} 11. Bxh7+ {[%emt 0:00:38]} Kh8 {[%emt 0:00:29]} 12. Bd3 {[%emt 0:00:07]} f6 {[%emt 0:00:55]} 13. Nbd2 {[%emt 0:00:28]} Rae8 {[%emt 0:00:28]} 14. Ne5 {[%emt 0:00:14]} 1-0

[Event "RUS-ch Men Blitz 2019"]
[Site "Sochi"]
[Date "2019.10.17"]
[Round "6.25"]
[White "Timofeev, Artyom"]
[Black "Usmanov, Ilnur"]
[Result "1-0"]
[ECO "A11"]
[WhiteElo "2595"]
[BlackElo "2144"]
[Annotator "RC"]
[PlyCount "138"]
[EventDate "2019.10.17"]
[EventType "swiss"]
[EventCountry "RUS"]
[SourceTitle "playchess.com"]
[Source "ChessBase"]
[SourceQuality "1"]
[TimeControl "180+2"]

1. c4 {[%emt 0:00:00]} c6 {[%emt 0:00:00]} 2. e3 {[%emt 0:00:04]} d5 {[%emt 0:00:00]} 3. Nf3 {[%emt 0:00:01]} Nf6 {[%emt 0:00:05]} 4. Nc3 {[%emt 0:00:01]} a6 {[%emt 0:00:07]} 5. b3 {[%emt 0:00:05]} g6 {[%emt 0:00:03]} 6. Bb2 {[%emt 0:00:02]} Bg7 {[%emt 0:00:01]} 7. Be2 {[%emt 0:00:04]} O-O {[%emt 0:00:02]} 8. O-O {[%emt 0:00:02]} b5 {[%emt 0:00:04]} 9. cxd5 {[%emt 0:00:13]} cxd5 {[%emt 0:00:03]} 10. Rc1 {[%emt 0:00:01]} Bb7 {[%emt 0:00:07]} 11. d3 {[%emt 0:00:11]} Nbd7 {[%emt 0:00:06]} 12. Qd2 {[%emt 0:00:02]} e6 {[%emt 0:00:10]} 13. Ba3 {[%emt 0:00:10]} Re8 {[%emt 0:00:02]} 14. Rc2 {[%emt 0:00:02]} Rc8 {[%emt 0:00:04]} 15. Rfc1 {[%emt 0:00:01]} Qb6 {[%emt 0:00:04]} 16. Bb2 {[%emt 0:00:06]} Rc6 {[%emt 0:00:15]} 17. Nd4 {[%emt 0:00:06]} Rcc8 {[%emt 0:00:05]} 18. h3 {[%emt 0:00:06]} h6 {[%emt 0:00:04]} 19. Bf1 {[%emt 0:00:04]} Red8 {[%emt 0:00:44]} 20. Nde2 {[%emt 0:00:07]} Re8 {[%emt 0:00:06]} 21. Ng3 {[%emt 0:00:04]} e5 {[%emt 0:00:05]} 22. Nce2 {[%emt 0:00:09]} h5 {[%emt 0:00:23]} 23. Rxc8 {[%emt 0:00:10]} Rxc8 {[%emt 0:00:01]} 24. Rxc8+ {[%emt 0:00:01]} Bxc8 {[%emt 0:00:01]} 25. Qc2 {[%emt 0:00:03]} Bb7 {[%emt 0:00:05]} 26. d4 {[%emt 0:00:23]} e4 {[%emt 0:00:19]} 27. Nc1 {[%emt 0:00:06]} Qc6 {[%emt 0:00:06]} 28. Qxc6 {[%emt 0:00:04]} Bxc6 {[%emt 0:00:00]} 29. Nge2 {[%emt 0:00:02]} Bf8 {[%emt 0:00:02]} 30. a3 {[%emt 0:00:09]} Bd6 {[%emt 0:00:02]} 31. b4 {[%emt 0:00:04]} Nb6 {[%emt 0:00:04]} 32. Nb3 {[%emt 0:00:01]} Nc4 {[%emt 0:00:05]} 33. Bc1 {[%emt 0:00:01]} Kf8 {[%emt 0:00:01]} 34. Nc3 {[%emt 0:00:02]} Ke7 {[%emt 0:00:02]} 35. Nc5 {[%emt 0:00:03]} Bxc5 {[%emt 0:00:07]} 36. dxc5 {[%emt 0:00:01]} Nd7 {[%emt 0:00:05]} 37. f4 {[%emt 0:00:03]} f5 {[%emt 0:00:04]} 38. Be2 {[%emt 0:00:03]} Nf6 {[%emt 0:00:02]} 39. Bd1 {[%emt 0:00:04]} Ke6 {[%emt 0:00:03]} 40. Ne2 {[%emt 0:00:01]} Kd7 {[%emt 0:00:02]} 41. Nd4 {[%emt 0:00:01]} Ne8 {[%emt 0:00:03]} 42. g4 {[%emt 0:00:03]} hxg4 {[%emt 0:00:01]} 43. hxg4 {[%emt 0:00:00]} Nc7 {[%emt 0:00:03]} 44. gxf5 {[%emt 0:00:02]} gxf5 {[%emt 0:00:03]} 45. Nxf5 {[%emt 0:00:01]} Ne6 {[%emt 0:00:03]} 46. Bg4 {[%emt 0:00:01]} Kd8 {[%emt 0:00:10]} 47. Kf2 {[%emt 0:00:06]} Bd7 {[%emt 0:00:01]} 48. Kg3 {[%emt 0:00:01]} Nf8 {[%emt 0:00:04]} 49. Nd4 {[%emt 0:00:11]} Bxg4 {[%emt 0:00:04]} 50. Kxg4 {[%emt 0:00:00]} Kd7 {[%emt 0:00:02]} 51. Kg5 {[%emt 0:00:07]} Nh7+ {[%emt 0:00:06]} 52. Kg6 {[%emt 0:00:02]} Nf8+ {[%emt 0:00:01]} 53. Kg7 {[%emt 0:00:00]} Ke7 {[%emt 0:00:01]} 54. Nf5+ {[%emt 0:00:19]} Ke8 {[%emt 0:00:01]} 55. Nd6+ {[%emt 0:00:01]} Ke7 {[%emt 0:00:01]} 56. Nc8+ {[%emt 0:00:04]} Ke8 {[%emt 0:00:01]} 57. Nb6 {[%emt 0:00:01]} Nxb6 {[%emt 0:00:15]} 58. cxb6 {[%emt 0:00:02]} Nd7 {[%emt 0:00:01]} 59. b7 {[%emt 0:00:01]} Ke7 {[%emt 0:00:01]} 60. Bb2 {[%emt 0:00:02]} Ke6 {[%emt 0:00:01]} 61. Kg6 {[%emt 0:00:08]} Nf8+ {[%emt 0:00:01]} 62. Kg5 Nd7 63. f5+ {[%emt 0:00:02]} Kd6 {[%emt 0:00:03]} 64. f6 {[%emt 0:00:06]} Ke6 {[%emt 0:00:01]} 65. Bd4 {[%emt 0:00:04]} Nb8 {[%emt 0:00:05]} 66. Kg6 {[%emt 0:00:02]} Nd7 {[%emt 0:00:03]} 67. Kg7 {[%emt 0:00:02]} Kd6 {[%emt 0:00:04]} 68. f7 Ke7 69. Bc5+ {[%emt 0:00:04]} Ke6 {[%emt 0:00:02]} 1-0

[Event "RUS-ch Men Blitz 2019"]
[Site "Sochi"]
[Date "2019.10.17"]
[Round "6.26"]
[White "Gabitov, Ruslan"]
[Black "Rozum, Ivan"]
[Result "0-1"]
[ECO "A00"]
[WhiteElo "2172"]
[BlackElo "2599"]
[Annotator "ChessBase"]
[PlyCount "65"]
[EventDate "2019.10.17"]
[EventType "swiss"]
[EventCountry "RUS"]
[SourceTitle "playchess.com"]
[Source "ChessBase"]
[SourceQuality "1"]
[TimeControl "180+2"]

1. g3 {[%emt 0:00:00]} d5 {[%emt 0:00:01]} 2. Bg2 {[%emt 0:00:00]} c6 {[%emt 0:00:01]} 3. d3 {[%emt 0:00:02]} e5 {[%emt 0:00:01]} 4. Nd2 {[%emt 0:00:01]} Nf6 {[%emt 0:00:02]} 5. e4 {[%emt 0:00:01]} Bd6 {[%emt 0:00:01]} 6. Ngf3 {[%emt 0:00:01]} O-O {[%emt 0:00:01]} 7. O-O {[%emt 0:00:01]} Re8 {[%emt 0:00:01]} 8. h3 {[%emt 0:00:09]} Nbd7 {[%emt 0:00:01]} 9. Re1 {[%emt 0:00:04]} Nf8 {[%emt 0:00:01]} 10. b3 {[%emt 0:00:02]} Ng6 {[%emt 0:00:02]} 11. Bb2 {[%emt 0:00:02]} a5 {[%emt 0:00:02]} 12. d4 {[%emt 0:00:21]} exd4 {[%emt 0:00:24]} 13. Nxd4 {[%emt 0:00:07]} Bf8 {[%emt 0:00:25]} 14. exd5 {[%emt 0:00:25]} Rxe1+ {[%emt 0:00:02]} 15. Qxe1 {[%emt 0:00:02]} Nxd5 {[%emt 0:00:00]} 16. N4f3 {[%emt 0:00:24]} a4 {[%emt 0:00:03]} 17. Nc4 {[%emt 0:00:14]} a3 {[%emt 0:00:02]} 18. Bd4 {[%emt 0:00:11]} Bf5 {[%emt 0:00:03]} 19. Rc1 {[%emt 0:00:27]} Nb4 {[%emt 0:00:06]} 20. Bb6 {[%emt 0:00:21]} Qf6 {[%emt 0:00:24]} 21. Nd4 {[%emt 0:00:18]} Bd7 {[%emt 0:00:20]} 22. Qd2 {[%emt 0:00:20]} Nxa2 23. Ra1 Bb4 {[%emt 0:00:19]} 24. Qd3 {[%emt 0:00:04]} Nc3 {[%emt 0:00:03]} 25. Nf3 {[%emt 0:00:04]} Bf5 {[%emt 0:00:04]} 26. Qf1 {[%emt 0:00:02]} Bxc2 {[%emt 0:00:03]} 27. Bd4 {[%emt 0:00:01]} Qd8 {[%emt 0:00:16]} 28. Kh2 {[%emt 0:00:06]} Bxb3 {[%emt 0:00:23]} 29. Nb6 {[%emt 0:00:00]} Ra6 {[%emt 0:00:04]} 30. Nc4 {[%emt 0:00:06]} a2 {[%emt 0:00:05]} 31. Ncd2 {[%emt 0:00:02]} Bd5 {[%emt 0:00:04]} 32. Qd3 {[%emt 0:00:03]} Nb5 {[%emt 0:00:11]} 33. Bb2 0-1

[Event "RUS-ch Men Blitz 2019"]
[Site "Sochi"]
[Date "2019.10.17"]
[Round "6.29"]
[White "Derjabin, Ilja"]
[Black "Gogolev, Artem"]
[Result "0-1"]
[ECO "E20"]
[WhiteElo "2333"]
[BlackElo "2339"]
[Annotator "NA"]
[PlyCount "52"]
[EventDate "2019.10.17"]
[EventType "swiss"]
[EventCountry "RUS"]
[SourceTitle "playchess.com"]
[Source "ChessBase"]
[SourceQuality "1"]
[TimeControl "180+2"]

1. d4 {[%emt 0:00:00]} Nf6 {[%emt 0:00:00]} 2. c4 {[%emt 0:00:00]} e6 {[%emt 0:00:00]} 3. Nc3 {[%emt 0:00:01]} Bb4 {[%emt 0:00:01]} 4. f3 {[%emt 0:00:02]} d5 {[%emt 0:00:01]} 5. a3 {[%emt 0:00:01]} Bxc3+ {[%emt 0:00:02]} 6. bxc3 {[%emt 0:00:01]} c5 {[%emt 0:00:01]} 7. e3 {[%emt 0:00:01]} Nc6 {[%emt 0:00:05]} 8. cxd5 {[%emt 0:00:05]} Nxd5 {[%emt 0:00:03]} 9. Bd2 {[%emt 0:00:09]} cxd4 {[%emt 0:00:06]} 10. exd4 {[%emt 0:00:12]} O-O {[%emt 0:00:02]} 11. f4 {[%emt 0:00:21]} b6 {[%emt 0:00:28]} 12. Nf3 {[%emt 0:00:03]} Bb7 {[%emt 0:00:01]} 13. Bd3 {[%emt 0:00:07]} h6 {[%emt 0:00:10]} 14. O-O {[%emt 0:00:03]} Rc8 {[%emt 0:00:01]} 15. Qe2 {[%emt 0:00:16]} Na5 {[%emt 0:00:03]} 16. c4 {[%emt 0:00:39]} Nf6 {[%emt 0:00:12]} 17. Bxa5 {[%emt 0:00:02]} Bxf3 {[%emt 0:00:11]} 18. Qxf3 {[%emt 0:00:08]} Qxd4+ {[%emt 0:00:01]} 19. Kh1 {[%emt 0:00:01]} bxa5 {[%emt 0:00:01]} 20. Rad1 {[%emt 0:00:03]} Qc5 {[%emt 0:00:03]} 21. Rb1 {[%emt 0:00:35]} Rfd8 {[%emt 0:00:10]} 22. Rb7 {[%emt 0:00:06]} Rd4 {[%emt 0:00:15]} 23. h3 {[%emt 0:00:10]} Rcd8 24. Be2 Re4 {[%emt 0:00:14]} 25. Rfb1 {[%emt 0:00:13]} Re3 {[%emt 0:00:03]} 26. Qf1 {[%emt 0:00:01]} Ne4 {[%emt 0:00:03]} 0-1

[Event "RUS-ch Men Blitz 2019"]
[Site "Sochi"]
[Date "2019.10.17"]
[Round "6.31"]
[White "Utnasunov, Alexander"]
[Black "Alexeev, Alexey"]
[Result "*"]
[ECO "D31"]
[WhiteElo "2442"]
[BlackElo "2252"]
[Annotator "NA"]
[PlyCount "36"]
[EventDate "2019.10.17"]
[EventType "swiss"]
[EventCountry "RUS"]
[SourceTitle "playchess.com"]
[Source "ChessBase"]
[SourceQuality "1"]
[TimeControl "180+2"]

1. d4 d5 2. c4 e6 3. Nc3 c6 4. e4 dxe4 5. Nxe4 Bb4+ $11 6. Bd2 Qxd4 7. Bxb4 Qxe4+ 8. Ne2 Na6 9. Ba5 b6 10. Bc3 f6 11. Qd6 Bd7 12. O-O-O Rd8 13. Ng3 Qg6 14. Be2 h5 15. Bf3 Ne7 16. Rhe1 Qg5+ 17. Kb1 Qc5 18. Ne4 O-O *

[Event "RUS-ch Men Blitz 2019"]
[Site "Sochi"]
[Date "2019.10.17"]
[Round "7.1"]
[White "Drygalov, Andrey"]
[Black "Sakaev, Konstantin"]
[Result "1/2-1/2"]
[ECO "B90"]
[WhiteElo "2484"]
[BlackElo "2595"]
[Annotator "ChessBase"]
[PlyCount "44"]
[EventDate "2019.10.17"]
[EventType "swiss"]
[EventCountry "RUS"]
[SourceTitle "playchess.com"]
[Source "ChessBase"]
[SourceQuality "1"]
[TimeControl "180+2"]

1. e4 {[%emt 0:00:00]} c5 {[%emt 0:00:00]} 2. Nf3 {[%emt 0:00:00]} d6 {[%emt 0:00:01]} 3. d4 {[%emt 0:00:00]} cxd4 {[%emt 0:00:01]} 4. Nxd4 {[%emt 0:00:01]} Nf6 {[%emt 0:00:01]} 5. Nc3 {[%emt 0:00:00]} a6 {[%emt 0:00:01]} 6. Be3 {[%emt 0:00:01]} e5 {[%emt 0:00:01]} 7. Nb3 {[%emt 0:00:01]} Be6 {[%emt 0:00:01]} 8. f3 {[%emt 0:00:01]} h5 {[%emt 0:00:02]} 9. Qd2 {[%emt 0:00:01]} Nbd7 {[%emt 0:00:02]} 10. Nd5 {[%emt 0:00:01]} Bxd5 {[%emt 0:00:05]} 11. exd5 {[%emt 0:00:01]} g6 {[%emt 0:00:03]} 12. O-O-O {[%emt 0:00:02]} Bg7 {[%emt 0:00:14]} 13. Kb1 {[%emt 0:00:05]} Qc7 {[%emt 0:00:18]} 14. c4 {[%emt 0:00:31]} a5 {[%emt 0:00:22]} 15. Na1 {[%emt 0:00:28]} a4 {[%emt 0:00:17]} 16. Nc2 {[%emt 0:00:01]} a3 {[%emt 0:00:03]} 17. Nxa3 {[%emt 0:00:07]} Rxa3 {[%emt 0:00:01]} 18. bxa3 {[%emt 0:00:01]} O-O {[%emt 0:00:02]} 19. Bd3 {[%emt 0:00:10]} Ra8 {[%emt 0:00:06]} 20. Qb4 {[%emt 0:00:01]} Nc5 {[%emt 0:00:12]} 21. Bc2 {[%emt 0:00:40]} Nfd7 {[%emt 0:00:19]} 22. Kc1 {[%emt 0:00:28]} Ra6 {[%emt 0:00:04]} 1/2-1/2

[Event "RUS-ch Men Blitz 2019"]
[Site "Sochi"]
[Date "2019.10.17"]
[Round "7.2"]
[White "Rublevsky, Sergei"]
[Black "Tsydypov, Zhamsaran"]
[Result "0-1"]
[ECO "B90"]
[WhiteElo "2651"]
[BlackElo "2553"]
[Annotator "RC"]
[PlyCount "116"]
[EventDate "2019.10.17"]
[EventType "swiss"]
[EventCountry "RUS"]
[SourceTitle "playchess.com"]
[Source "ChessBase"]
[SourceQuality "1"]
[TimeControl "180+2"]

1. e4 {[%emt 0:00:00]} c5 {[%emt 0:00:00]} 2. Nf3 {[%emt 0:00:01]} d6 {[%emt 0:00:00]} 3. d4 {[%emt 0:00:09]} cxd4 {[%emt 0:00:01]} 4. Nxd4 {[%emt 0:00:01]} Nf6 {[%emt 0:00:02]} 5. Nc3 {[%emt 0:00:01]} a6 {[%emt 0:00:01]} 6. Bc4 {[%emt 0:00:01]} e6 {[%emt 0:00:04]} 7. Bb3 {[%emt 0:00:01]} Nbd7 {[%emt 0:00:14]} 8. Bg5 {[%emt 0:00:04]} Nc5 {[%emt 0:00:06]} 9. O-O {[%emt 0:00:05]} Be7 {[%emt 0:00:03]} 10. Re1 {[%emt 0:00:09]} Qc7 {[%emt 0:00:05]} 11. f4 {[%emt 0:00:03]} O-O {[%emt 0:00:15]} 12. e5 {[%emt 0:00:10]} dxe5 {[%emt 0:00:02]} 13. fxe5 {[%emt 0:00:01]} Ne8 {[%emt 0:00:01]} 14. Bxe7 {[%emt 0:00:04]} Qxe7 {[%emt 0:00:02]} 15. Qf3 {[%emt 0:00:06]} Bd7 {[%emt 0:00:11]} 16. Ne4 {[%emt 0:00:14]} Rd8 {[%emt 0:00:18]} 17. Rad1 {[%emt 0:00:08]} Nxe4 {[%emt 0:00:04]} 18. Qxe4 {[%emt 0:00:04]} Bc8 {[%emt 0:00:07]} 19. c3 {[%emt 0:00:15]} g6 {[%emt 0:00:01]} 20. Nf3 {[%emt 0:00:49]} Ng7 {[%emt 0:00:04]} 21. Qh4 {[%emt 0:00:01]} Qxh4 {[%emt 0:00:23]} 22. Nxh4 {[%emt 0:00:01]} b5 {[%emt 0:00:09]} 23. Nf3 {[%emt 0:00:11]} Bb7 {[%emt 0:00:02]} 24. Kf2 {[%emt 0:00:02]} Nf5 {[%emt 0:00:13]} 25. g4 {[%emt 0:00:06]} Ne7 {[%emt 0:00:01]} 26. Kg3 {[%emt 0:00:07]} Bxf3 {[%emt 0:00:37]} 27. Kxf3 {[%emt 0:00:01]} g5 {[%emt 0:00:01]} 28. Bc2 {[%emt 0:00:20]} Nc6 {[%emt 0:00:03]} 29. Ke4 {[%emt 0:00:09]} Na5 {[%emt 0:00:04]} 30. Bb3 {[%emt 0:00:05]} Nb7 {[%emt 0:00:04]} 31. Ke3 {[%emt 0:00:03]} Nc5 {[%emt 0:00:01]} 32. Bc2 {[%emt 0:00:12]} Nd7 {[%emt 0:00:01]} 33. Ke4 {[%emt 0:00:00]} f6 {[%emt 0:00:18]} 34. exf6 {[%emt 0:00:07]} Nxf6+ {[%emt 0:00:01]} 35. Kf3 {[%emt 0:00:01]} Rxd1 {[%emt 0:00:15]} 36. Bxd1 {[%emt 0:00:02]} Nd5+ {[%emt 0:00:05]} 37. Kg3 {[%emt 0:00:01]} Nf4 {[%emt 0:00:02]} 38. Bb3 {[%emt 0:00:02]} Kf7 {[%emt 0:00:01]} 39. h4 {[%emt 0:00:02]} h6 {[%emt 0:00:01]} 40. hxg5 {[%emt 0:00:03]} hxg5 {[%emt 0:00:01]} 41. Rh1 {[%emt 0:00:01]} Rd8 {[%emt 0:00:01]} 42. Rh7+ {[%emt 0:00:03]} Kf6 {[%emt 0:00:00]} 43. Ra7 {[%emt 0:00:05]} Rd6 {[%emt 0:00:06]} 44. Kf3 {[%emt 0:00:01]} Ke5 {[%emt 0:00:02]} 45. a4 {[%emt 0:00:03]} Rd3+ {[%emt 0:00:01]} 46. Kf2 {[%emt 0:00:02]} Rd2+ {[%emt 0:00:01]} 47. Kf3 {[%emt 0:00:04]} Rxb2 {[%emt 0:00:01]} 48. Bd1 {[%emt 0:00:01]} Rd2 {[%emt 0:00:01]} 49. Bb3 {[%emt 0:00:03]} Rd3+ {[%emt 0:00:01]} 50. Kf2 {[%emt 0:00:01]} Rxc3 51. Bd1 b4 {[%emt 0:00:15]} 52. Rxa6 {[%emt 0:00:02]} b3 {[%emt 0:00:00]} 53. Rb6 {[%emt 0:00:01]} b2 {[%emt 0:00:01]} 54. Bf3 {[%emt 0:00:10]} Rc1 {[%emt 0:00:02]} 55. Rb5+ {[%emt 0:00:00]} Kd4 {[%emt 0:00:02]} 56. a5 {[%emt 0:00:07]} b1=Q {[%emt 0:00:03]} 57. Rxb1 {[%emt 0:00:01]} Rxb1 {[%emt 0:00:01]} 58. a6 {[%emt 0:00:01]} Ra1 {[%emt 0:00:01]} 0-1